bitfinex-derivatives/quotes_BTCF0:USTF0_20251118
["timestamp","ask_amount","ask_price","bid_price","bid_amount"]
[1763449624810,0.01365,89713.0,89702.0,0.27068]
[1763449625103,0.01365,89713.0,89674.0,0.04206025]
[1763449625104,0.05713,89700.0,89674.0,0.04206025]
[1763449625316,0.05932803,89700.0,89696.0,0.22592]
[1763449626005,0.05932803,89700.0,89674.0,0.04206025]
[1763449626006,0.01365,89687.0,89674.0,0.04206025]
[1763449626209,0.00219803,89680.0,89677.0,0.29596729]
[1763449626396,0.01365,89687.0,89677.0,0.29596729]
[1763449626709,0.01365,89700.0,89677.0,0.40744729]
[1763449626897,0.01365,89700.0,89674.0,0.04206025]
[1763449626898,0.01584803,89700.0,89690.0,0.29596729]
[1763449627105,0.00016663,89697.0,89690.0,0.29596729]
[1763449628110,0.00016663,89697.0,89690.0,0.29696729]
[1763449628613,0.00016663,89697.0,89691.0,0.11148]
[1763449628801,0.01365,89713.0,89690.0,0.29696729]
[1763449628802,0.01365,89713.0,89701.0,0.1116149]
[1763449629112,0.01365,89739.0,89703.0,0.29596729]
[1763449629301,0.01365,89739.0,89716.0,0.29596729]
[1763449629503,0.01365,89739.0,89717.0,0.27064]
[1763449630809,0.01365,89739.0,89716.0,0.29596729]
[1763449630810,0.00219803,89730.0,89716.0,0.29596729]
[1763449631011,0.00219803,89730.0,89716.0,0.56660729]
[1763449631612,0.00027863,89726.0,89716.0,0.56660729]
[1763449631909,0.00027863,89726.0,89720.0,0.1115908]
[1763449632308,0.00027863,89726.0,89723.0,0.1115868]
[1763449632808,0.01365,89752.0,89733.0,0.1115744]
[1763449632999,0.01365,89752.0,89742.0,0.29596729]
[1763449633203,0.00219803,89750.0,89742.0,0.29596729]
[1763449633599,0.01365,89752.0,89742.0,0.29596729]
[1763449634005,0.0002785,89766.0,89742.0,0.29596729]
[1763449634218,0.0002785,89766.0,89734.0,0.2708072]
[1763449634219,0.00219803,89760.0,89756.0,0.29596729]
[1763449634515,0.04348,89750.0,89749.0,0.0001672]
[1763449634812,0.01365,89754.0,89749.0,0.2706]
[1763449635209,0.0002785,89766.0,89749.0,0.2706]
[1763449635409,0.00219803,89760.0,89749.0,0.2706]
[1763449635816,0.00219803,89760.0,89750.0,0.29596729]
[1763449636316,0.0002785,89766.0,89750.0,0.29596729]
[1763449637120,0.00219803,89760.0,89756.0,0.29596729]
[1763449637418,0.0002785,89766.0,89756.0,0.29596729]
[1763449638004,0.00027838,89806.0,89756.0,0.29596729]
[1763449638005,0.00027838,89806.0,89768.0,0.1115309]
[1763449638206,0.01301,89796.0,89769.0,0.27076]
[1763449638403,0.01301,89796.0,89778.0,0.0001671]
[1763449638404,0.04419,89779.0,89778.0,0.0001671]
[1763449638610,0.04419,89765.0,89764.0,0.11932]
[1763449639018,0.00219803,89760.0,89757.0,0.27076]
[1763449639210,0.02137,89758.0,89731.0,0.05958754]
[1763449639411,0.02137,89746.0,89745.0,0.11138524]
[1763449639717,0.01301,89740.0,89737.0,0.0001671]
[1763449639913,0.04419,89738.0,89737.0,0.0001671]
[1763449641918,0.44419,89738.0,89737.0,0.0001671]
[1763449642118,0.44419,89738.0,89737.0,0.0011671]
[1763449642720,0.44419,89738.0,89737.0,0.0001671]
[1763449643108,0.42282,89738.0,89728.0,0.29596729]
[1763449643310,0.42282,89738.0,89720.0,0.00010486]
[1763449643311,0.04419,89721.0,89720.0,4.86e-06]
[1763449644517,0.44430505,89721.0,89720.0,4.86e-06]
[1763449645313,0.04419,89697.0,89696.0,0.27068]
[1763449645817,0.01301,89715.0,89696.0,0.27068]
[1763449646013,0.01301,89715.0,89705.0,0.29596729]
[1763449646014,0.00219803,89710.0,89705.0,0.29596729]
[1763449646415,0.01301,89715.0,89705.0,0.29596729]
[1763449647020,0.04409,89706.0,89705.0,0.29596729]
[1763449647212,0.05757,89700.0,89699.0,0.00016721]
[1763449647519,0.05976803,89700.0,89699.0,0.00016721]
[1763449648029,0.03704803,89700.0,89699.0,0.00016721]
[1763449648322,0.01343,89700.0,89699.0,0.00016721]
[1763449648820,0.01562803,89700.0,89699.0,0.00116721]
[1763449649020,0.05976803,89700.0,89699.0,0.00116721]
[1763449649212,0.05976803,89700.0,89699.0,0.00016721]
[1763449649411,0.05976803,89700.0,89699.0,0.00116721]
[1763449649610,0.03615,89700.0,89699.0,0.00116721]
[1763449649818,0.01343,89700.0,89699.0,0.00116721]
[1763449650722,0.01301,89715.0,89699.0,0.00116721]
[1763449650911,0.00219803,89710.0,89705.0,0.29596729]
[1763449651112,0.01301,89715.0,89705.0,0.29596729]
[1763449651827,0.00016721,89716.0,89713.0,0.1116]
[1763449652123,0.00016721,89716.0,89714.0,0.27072]
[1763449652310,0.00219803,89720.0,89714.0,0.27072]
[1763449652509,0.00011505,89721.0,89715.0,0.11144]
[1763449652715,0.00011505,89721.0,89716.0,0.1115966]
[1763449652917,0.01301,89740.0,89716.0,0.17102754]
[1763449653116,0.01301,89740.0,89730.0,0.29596729]
[1763449653317,0.01520803,89740.0,89731.0,0.27072]
[1763449653920,0.02142,89732.0,89731.0,0.27072]
[1763449654415,0.04414,89727.0,89726.0,0.00016721]
[1763449654622,0.04414,89727.0,89726.0,0.27084721]
[1763449655018,0.01301,89740.0,89726.0,0.27084721]
[1763449655220,0.01520803,89740.0,89730.0,0.29596729]
[1763449656420,0.01301,89740.0,89731.0,0.1115779]
[1763449656618,0.01301,89740.0,89730.0,0.29596729]
[1763449657030,0.00016721,89744.0,89731.0,0.1115779]
[1763449657230,0.00016721,89744.0,89734.0,0.1115736]
[1763449657627,0.00016721,89744.0,89730.0,0.29596729]
[1763449657628,0.01562803,89740.0,89730.0,0.29596729]
[1763449657823,0.02142,89731.0,89730.0,0.29596729]
[1763449658018,0.00354673,89731.0,89730.0,0.27064]
[1763449658324,0.01562803,89740.0,89730.0,0.27064]
[1763449658525,0.04414,89731.0,89730.0,0.56660729]
[1763449658725,0.01562803,89740.0,89730.0,0.27064]
[1763449658726,0.01343,89740.0,89730.0,0.27064]
[1763449658926,0.01562803,89740.0,89730.0,0.56660729]
[1763449659234,0.04414,89731.0,89730.0,0.56660729]
[1763449659434,0.02142,89731.0,89730.0,0.27064]
[1763449659629,0.01343,89740.0,89730.0,0.27064]
[1763449659829,0.02142,89731.0,89730.0,0.56660729]
[1763449660133,0.04414,89727.0,89726.0,0.00044584]
[1763449660331,0.04414,89727.0,89726.0,0.27104584]
[1763449660525,0.02142,89727.0,89726.0,0.27104584]
[1763449660725,0.04414,89727.0,89726.0,0.27104584]
[1763449661534,0.04414,89727.0,89726.0,0.27204584]
[1763449662129,0.04414,89727.0,89726.0,0.27104584]
[1763449663226,0.04414,89727.0,89726.0,0.00044584]
[1763449663424,0.04414,89704.0,89702.0,0.05958754]
[1763449663628,0.04414,89699.0,89698.0,0.05958754]
[1763449663827,0.04414,89695.0,89694.0,0.32399729]
[1763449664032,0.01343,89700.0,89694.0,0.02803]
[1763449664441,0.01343,89713.0,89694.0,0.1396533]
[1763449664635,0.01343,89713.0,89703.0,0.29596729]
[1763449664829,0.00016721,89712.0,89703.0,0.29596729]
[1763449665029,0.00219803,89710.0,89703.0,0.29596729]
[1763449665231,0.00016721,89712.0,89703.0,0.29596729]
[1763449666335,3.122e-05,89712.0,89703.0,0.29596729]
[1763449666729,0.04414,89704.0,89703.0,0.29596729]
[1763449666927,0.01343,89700.0,89698.0,0.05958754]
[1763449667426,0.01343,89700.0,89699.0,0.05958754]
[1763449667625,0.05876803,89700.0,89698.0,0.05958754]
[1763449667929,0.05876803,89700.0,89697.0,0.05958754]
[1763449667930,0.01243,89700.0,89697.0,0.05958754]
[1763449668132,0.01243,89700.0,89699.0,0.05958754]
[1763449668436,3.122e-05,89712.0,89698.0,0.001]
[1763449668633,3.122e-05,89712.0,89704.0,0.05996484]
[1763449668834,0.00219803,89710.0,89705.0,0.33056484]
[1763449669333,0.00219803,89710.0,89708.0,0.05996484]
[1763449669935,0.02142,89708.0,89707.0,0.05996484]
[1763449670131,0.04414,89708.0,89706.0,0.05996484]
[1763449670343,0.04414,89708.0,89707.0,0.05996484]
[1763449671341,0.04414,89708.0,89707.0,0.001]
[1763449671941,0.04414,89708.0,89707.0,0.06100803]
[1763449672641,0.04414,89708.0,89707.0,0.001]
[1763449672843,0.04414,89706.0,89705.0,0.2366]
[1763449673443,0.04414,89706.0,89705.0,0.2016]
[1763449673844,0.04314,89706.0,89705.0,0.2016]
[1763449674235,0.03776026,89706.0,89705.0,0.2016]
[1763449674846,0.04414,89696.0,89694.0,0.02803]
[1763449675740,0.01562803,89700.0,89687.0,0.18024]
[1763449675942,0.04414,89688.0,89687.0,0.18024]
[1763449678939,0.05605,89687.0,89679.0,0.00016721]
[1763449680352,0.04483,89680.0,89679.0,0.00016721]
[1763449680645,0.04483,89671.0,89670.0,0.21199424]
[1763449680838,0.04483,89671.0,89670.0,9.86e-05]
[1763449681638,0.01071,89676.0,89650.0,0.21189564]
[1763449681639,0.04483,89651.0,89650.0,0.21189564]
[1763449681938,0.04483,89647.0,89642.0,0.27064]
[1763449682139,0.00219803,89650.0,89649.0,0.04465]
[1763449682540,0.00230032,89650.0,89649.0,0.04465]
[1763449683249,0.04483,89647.0,89646.0,0.04492888]
[1763449683551,0.04483,89647.0,89646.0,0.00027888]
[1763449685740,0.03983,89647.0,89646.0,0.00027888]
[1763449685939,0.03983,89647.0,89641.0,0.00016732]
[1763449686148,0.04483,89621.0,89620.0,0.21189564]
[1763449686340,0.00219803,89620.0,89619.0,0.02289]
[1763449686541,0.00219803,89620.0,89619.0,0.31537]
[1763449687142,9.245e-05,89621.0,89620.0,0.04465]
[1763449687951,0.02327245,89621.0,89620.0,0.04465]
[1763449688148,9.245e-05,89621.0,89620.0,0.04465]
[1763449691547,2.45e-06,89621.0,89620.0,0.04465]
[1763449693047,2.45e-06,89621.0,89620.0,0.44465]
[1763449693247,0.01298,89652.0,89642.0,0.21189564]
[1763449693442,0.00219803,89650.0,89642.0,0.21189564]
[1763449693648,0.00219803,89650.0,89640.0,0.21189564]
[1763449693852,0.04702803,89650.0,89649.0,0.04465]
[1763449694047,0.04702803,89650.0,89640.0,0.43718128]
[1763449694449,0.00219803,89650.0,89649.0,0.04465]
[1763449695251,0.04702803,89650.0,89649.0,0.04465]
[1763449695458,0.04802803,89650.0,89649.0,0.04465]
[1763449696145,0.001,89650.0,89649.0,0.04465]
[1763449696345,0.00016732,89654.0,89649.0,0.04465]
[1763449696548,0.00016732,89654.0,89653.0,0.04465]
[1763449696751,0.01298,89700.0,89652.0,0.01339]
[1763449696954,0.04483,89679.0,89678.0,0.21189564]
[1763449697152,0.04483,89679.0,89670.0,0.2708]
[1763449697653,0.00219803,89680.0,89670.0,0.2708]
[1763449697654,0.04483,89671.0,89670.0,0.2708]
[1763449697956,0.01298,89676.0,89660.0,0.21189564]
[1763449697957,0.04483,89661.0,89660.0,0.21189564]
[1763449698264,0.04702803,89660.0,89659.0,0.24477]
[1763449698650,0.00016732,89679.0,89659.0,0.24477]
[1763449698956,0.04702803,89670.0,89669.0,0.21189564]
[1763449699149,0.04483,89661.0,89660.0,0.21189564]
[1763449699349,0.04799803,89660.0,89659.0,0.20012]
[1763449699549,0.04799803,89660.0,89659.0,0.24436]
[1763449699954,0.00219803,89660.0,89659.0,0.24436]
[1763449701554,0.001,89660.0,89659.0,0.24436]
[1763449702053,0.00016732,89679.0,89659.0,0.24436]
[1763449702253,0.00219803,89670.0,89669.0,0.25613564]
[1763449702455,0.00219803,89670.0,89669.0,0.04424]
[1763449702650,0.02431803,89670.0,89669.0,0.04424]
[1763449702856,0.04693803,89670.0,89669.0,0.04424]
[1763449703252,0.04793803,89670.0,89669.0,0.04424]
[1763449703450,0.001,89670.0,89669.0,0.04424]
[1763449703651,0.00319803,89670.0,89669.0,0.04424]
[1763449703963,0.00319803,89670.0,89665.0,0.27076]
[1763449703964,0.04474,89666.0,89665.0,0.27076]
[1763449704147,0.04474,89666.0,89665.0,0.29194]
[1763449704350,0.04474,89661.0,89658.0,0.27076]
[1763449704546,0.04474,89659.0,89658.0,0.02118]
[1763449704750,0.04474,89657.0,89656.0,0.29194]
[1763449704951,0.02212,89657.0,89656.0,0.315]
[1763449705150,0.04474,89657.0,89656.0,0.04424]
[1763449705561,0.04474,89653.0,89652.0,0.00016732]
[1763449706269,0.01398,89676.0,89652.0,0.04440732]
[1763449706456,0.04693803,89660.0,89659.0,0.04424]
[1763449706659,0.04474,89653.0,89652.0,0.00016732]
[1763449707157,0.04474,89653.0,89652.0,0.02134732]
[1763449707552,0.04474,89653.0,89652.0,0.00016732]
[1763449707963,0.04465,89628.0,89626.0,0.06000803]
[1763449708265,0.00744,89648.0,89618.0,0.23303564]
[1763449708266,0.04465,89619.0,89618.0,0.23303564]
[1763449708560,0.00744,89648.0,89619.0,0.04438]
[1763449708754,0.00219803,89640.0,89630.0,0.21189564]
[1763449708956,0.04465,89631.0,89630.0,0.21189564]
[1763449709155,0.00219803,89630.0,89622.0,0.00016732]
[1763449710356,0.00016732,89639.0,89638.0,0.02114]
[1763449710565,0.04481732,89639.0,89638.0,0.02114]
[1763449710762,0.04481732,89639.0,89629.0,0.21189564]
[1763449711363,0.04481732,89639.0,89638.0,0.02114]
[1763449711562,0.04581732,89639.0,89638.0,0.02114]
[1763449712059,0.04481732,89639.0,89629.0,0.21189564]
[1763449712869,0.04581732,89639.0,89629.0,0.21189564]
[1763449714062,0.04581732,89639.0,89629.0,0.23303564]
[1763449714063,0.04465,89630.0,89629.0,0.23303564]
[1763449714263,0.00219803,89630.0,89629.0,0.04438]
[1763449714656,0.0393994,89658.0,89657.0,0.04438]
[1763449714855,0.07887477,89671.0,89657.0,0.04438]
[1763449714856,0.00027875,89686.0,89663.0,0.04438]
[1763449715070,0.04465,89661.0,89660.0,0.21409367]
[1763449715260,0.04465,89661.0,89660.0,0.04657803]
[1763449715667,0.00016732,89669.0,89668.0,0.04438]
[1763449716071,0.00027875,89686.0,89685.0,0.04438]
[1763449717062,0.00027875,89686.0,89684.0,0.01347]
[1763449717063,0.00016732,89694.0,89693.0,0.04438]
[1763449718067,0.01422863,89726.0,89693.0,0.04438]
[1763449718270,0.04465,89721.0,89720.0,0.00219803]
[1763449718571,0.01422863,89726.0,89710.0,0.21189564]
[1763449718572,0.04465,89711.0,89710.0,0.21189564]
[1763449718770,0.04465,89711.0,89710.0,0.00219803]
[1763449719759,0.04665,89711.0,89710.0,0.00219803]
[1763449720171,0.02453,89711.0,89710.0,0.02333803]
[1763449720673,0.02553,89711.0,89710.0,0.02333803]
[1763449720874,0.003,89711.0,89710.0,0.04657803]
[1763449721574,0.00016722,89719.0,89718.0,0.04438]
[1763449721776,0.00027863,89726.0,89725.0,0.04438]
[1763449722069,0.00027863,89726.0,89725.0,0.31526]
[1763449722269,0.0002785,89766.0,89726.0,0.01347]
[1763449722572,0.00048276,89760.0,89740.0,0.01136]
[1763449722766,0.00048276,89760.0,89750.0,0.21409367]
[1763449722767,0.00016713,89759.0,89750.0,0.21409367]
[1763449722970,0.00016713,89759.0,89758.0,0.02114]
[1763449723173,0.04481713,89759.0,89750.0,0.21189564]
[1763449723378,0.04481713,89759.0,89750.0,0.21409367]
[1763449724268,0.04681713,89759.0,89750.0,0.21409367]
[1763449724474,0.00216713,89759.0,89758.0,0.04438]
[1763449725171,0.00416713,89759.0,89758.0,0.04438]
[1763449726565,0.00216713,89759.0,89758.0,0.04438]
[1763449727264,0.00016713,89759.0,89758.0,0.04438]
[1763449728272,0.02253,89757.0,89756.0,0.22944]
[1763449728473,0.02253,89757.0,89749.0,0.21189564]
[1763449728673,0.00116713,89759.0,89756.0,0.04438]
[1763449728870,0.00116713,89759.0,89758.0,0.04438]
[1763449729073,0.0002785,89766.0,89765.0,0.04438]
[1763449729673,0.00011118,89766.0,89765.0,0.04438]
[1763449730178,0.00111118,89766.0,89765.0,0.04438]
[1763449730381,0.00111118,89766.0,89765.0,0.31534]
[1763449730576,0.00111118,89766.0,89765.0,0.04438]
[1763449730772,0.01395,89810.0,89765.0,0.71534]
[1763449730982,0.00048276,89800.0,89796.0,0.21189564]
[1763449731175,0.00048276,89800.0,89790.0,0.21409367]
[1763449731480,0.04465,89791.0,89790.0,0.21409367]
[1763449731678,0.04465,89791.0,89790.0,0.00219803]
[1763449732072,0.04465,89778.0,89777.0,0.00016713]
[1763449732476,0.00048276,89780.0,89777.0,0.00016713]
[1763449732477,0.00048276,89780.0,89777.0,0.02130713]
[1763449733276,0.04465,89778.0,89777.0,0.00016713]
[1763449733475,0.04565,89778.0,89777.0,0.00016713]
[1763449734080,0.04465,89778.0,89777.0,0.00016713]
[1763449734770,0.00248276,89780.0,89779.0,0.04438]
[1763449735274,0.00148276,89780.0,89779.0,0.04438]
[1763449735671,0.00048276,89780.0,89779.0,0.04438]
[1763449736078,0.00148276,89780.0,89779.0,0.04438]
[1763449736278,0.00248276,89780.0,89779.0,0.04438]
[1763449736587,0.002,89780.0,89779.0,0.04438]
[1763449737280,0.8982,89823.0,89780.0,0.00219803]
[1763449737578,0.00048276,89810.0,89796.0,0.21189564]
[1763449737776,0.00048276,89810.0,89800.0,0.00219803]
[1763449738376,0.02161,89801.0,89800.0,0.00219803]
[1763449738576,0.0429,89801.0,89800.0,0.00219803]
[1763449739077,0.00048276,89800.0,89734.0,0.05996015]
[1763449739382,0.00048276,89800.0,89799.0,0.04405]
[1763449740278,0.02209276,89800.0,89799.0,0.02186]
[1763449740485,0.00048276,89800.0,89780.0,0.29523729]
[1763449740779,0.00048276,89800.0,89780.0,0.29743532]
[1763449741377,0.00048276,89800.0,89790.0,0.29523729]
[1763449741378,0.0429,89791.0,89790.0,0.29523729]
[1763449741578,0.0429,89791.0,89790.0,0.00219803]
[1763449742483,0.0429,89778.0,89730.0,0.01333]
[1763449742679,0.0429,89778.0,89768.0,0.29523729]
[1763449742874,0.0429,89778.0,89730.0,0.01333]
[1763449743080,0.0429,89761.0,89760.0,0.29743532]
[1763449743385,0.0429,89761.0,89760.0,0.00219803]
[1763449743778,0.01354,89768.0,89751.0,0.02194338]
[1763449743779,0.02161,89752.0,89751.0,0.02194338]
[1763449743979,0.01354,89782.0,89759.0,0.02186]
[1763449744178,0.00048276,89770.0,89769.0,0.02186]
[1763449744482,0.0429,89763.0,89762.0,0.00016713]
[1763449745086,0.02161,89763.0,89762.0,0.04421713]
[1763449745279,0.00016713,89779.0,89762.0,0.04421713]
[1763449745476,0.00016713,89779.0,89770.0,0.00219803]
[1763449745685,0.0429,89771.0,89770.0,0.00219803]
[1763449745988,0.0429,89763.0,89762.0,0.00016713]
[1763449746789,0.00016713,89779.0,89762.0,0.04421713]
[1763449746980,0.0429,89771.0,89770.0,0.00219803]
[1763449749885,0.001,89771.0,89770.0,0.04624803]
[1763449750388,0.00016713,89779.0,89778.0,0.04405]
[1763449750584,0.00116713,89779.0,89778.0,0.04405]
[1763449751185,0.04406713,89779.0,89769.0,0.29523729]
[1763449751382,0.04406713,89779.0,89762.0,0.00016713]
[1763449751383,0.02161,89771.0,89770.0,0.02405803]
[1763449751588,0.00016713,89779.0,89778.0,0.04405]
[1763449751793,0.00016713,89779.0,89770.0,0.00219803]
[1763449751794,0.0429,89770.0,89762.0,0.00016713]
[1763449751993,0.04338276,89770.0,89762.0,0.00016713]
[1763449752782,0.00048276,89770.0,89769.0,0.04405]
[1763449753588,0.001,89771.0,89770.0,0.04624803]
[1763449754194,0.00016713,89779.0,89778.0,0.04405]
[1763449755485,0.04306713,89779.0,89769.0,0.29523729]
[1763449755687,0.04306713,89779.0,89770.0,0.00219803]
[1763449756689,0.0429,89771.0,89770.0,0.00219803]
[1763449758194,0.0429,89771.0,89770.0,0.02405803]
[1763449758390,0.0439,89771.0,89770.0,0.00219803]
[1763449760890,0.001,89771.0,89770.0,0.04629803]
[1763449762001,0.00016713,89779.0,89778.0,0.05821]
[1763449762296,2.812e-05,89779.0,89778.0,0.05821]
[1763449762491,2.812e-05,89779.0,89778.0,0.11826543]
[1763449762695,2.812e-05,89779.0,89778.0,0.32905]
[1763449763889,0.00102812,89779.0,89778.0,0.32905]
[1763449764891,0.00102812,89779.0,89778.0,0.04555]
[1763449765200,0.02362812,89779.0,89778.0,0.31635]
[1763449765395,0.00102812,89779.0,89778.0,0.04555]
[1763449765594,0.02362812,89779.0,89778.0,0.31631]
[1763449765795,0.00102812,89779.0,89778.0,0.31631]
[1763449767296,0.00102812,89779.0,89778.0,0.3296]
[1763449767902,0.0393994,89816.0,89780.0,0.00219803]
[1763449768088,0.04507276,89790.0,89781.0,0.06001736]
[1763449768298,0.04507276,89790.0,89780.0,0.00219803]
[1763449769199,0.04507276,89790.0,89780.0,0.29743532]
[1763449769695,0.04459,89781.0,89780.0,0.00219803]
[1763449770500,0.03981384,89781.0,89780.0,0.02361803]
[1763449770891,0.03981384,89781.0,89780.0,0.04630803]
[1763449771093,0.001,89790.0,89780.0,0.04630803]
[1763449771291,0.00148276,89790.0,89780.0,0.34154532]
[1763449771892,0.001,89781.0,89780.0,0.34154532]
[1763449772102,0.001,89781.0,89780.0,0.04630803]
[1763449772900,0.001,89790.0,89789.0,0.04411]
[1763449773101,0.00148276,89790.0,89789.0,0.04411]
[1763449773294,0.02348276,89790.0,89789.0,0.04411]
[1763449773701,0.02248276,89790.0,89789.0,0.04411]
[1763449774998,0.0393994,89813.0,89805.0,0.04411]
[1763449775202,0.02227838,89806.0,89805.0,0.04411]
[1763449775407,0.04486838,89806.0,89805.0,0.04411]
[1763449776204,0.04586838,89806.0,89805.0,0.04411]
[1763449777997,0.04586838,89806.0,89800.0,0.00219803]
[1763449777998,0.04459,89801.0,89800.0,0.00219803]
[1763449778393,0.01781718,89801.0,89800.0,0.04630803]
[1763449778900,0.03981718,89801.0,89800.0,0.04630803]
[1763449779301,0.04081718,89801.0,89800.0,0.04630803]
[1763449780304,0.001,89801.0,89800.0,0.04630803]
[1763449781508,0.00027838,89806.0,89805.0,0.04411]
[1763449782206,0.3608,89827.0,89826.0,0.04411]
[1763449783501,0.3618,89827.0,89826.0,0.04411]
[1763449784510,0.40639,89827.0,89820.0,0.01329]
[1763449784806,0.3618,89827.0,89826.0,0.04411]
[1763449785411,0.40639,89827.0,89826.0,0.04411]
[1763449785605,0.40539,89827.0,89826.0,0.02142]
[1763449785808,0.40639,89827.0,89826.0,0.02142]
[1763449786313,0.37962577,89827.0,89826.0,0.04411]
[1763449786609,0.19486864,89827.0,89826.0,0.04411]
[1763449787003,0.01305,89844.0,89826.0,0.04411]
[1763449787004,0.01305,89844.0,89830.0,0.00219803]
[1763449787205,0.01305,89856.0,89843.0,0.05986754]
[1763449787406,0.00048276,89850.0,89844.0,0.27068]
[1763449787912,0.01305,89856.0,89844.0,0.27068]
[1763449788508,0.00048276,89850.0,89844.0,0.27068]
[1763449788912,0.01305,89856.0,89844.0,0.27068]
[1763449789111,0.00127826,89846.0,89844.0,0.27068]
[1763449789308,0.01305,89843.0,89840.0,0.00219803]
[1763449789508,0.01305,89843.0,89841.0,0.27064]
[1763449790710,0.01305,89843.0,89840.0,0.00219803]
[1763449791022,0.04459,89841.0,89840.0,0.00219803]
[1763449791210,0.01305,89843.0,89840.0,0.27279803]
[1763449792320,0.022,89841.0,89840.0,0.27279803]
[1763449792812,0.04459,89841.0,89840.0,0.00219803]
[1763449794520,0.04559,89841.0,89840.0,0.00219803]
[1763449797413,0.023,89841.0,89840.0,0.00219803]
[1763449798320,0.001,89841.0,89840.0,0.00219803]
[1763449798523,0.04563,89841.0,89840.0,0.00219803]
[1763449801613,0.001,89841.0,89840.0,0.00219803]
[1763449802414,0.01305,89856.0,89840.0,0.04200415]
[1763449802611,0.01305,89856.0,89846.0,0.42221862]
[1763449802823,0.00652,89880.0,89861.0,0.1114163]
[1763449803117,0.00652,89880.0,89862.0,0.2704]
[1763449803320,0.04463,89871.0,89870.0,0.21330734]
[1763449803511,0.0215,89871.0,89870.0,0.00219803]
[1763449803712,0.0126,89892.0,89870.0,0.11360233]
[1763449803919,0.0126,89892.0,89880.0,0.1113919]
[1763449804109,0.0126,89892.0,89882.0,0.21110931]
[1763449804724,0.0126,89892.0,89883.0,0.11125079]
[1763449804914,0.0126,89892.0,89883.0,0.22264009]
[1763449805109,0.0126,89903.0,89884.0,0.11124]
[1763449805317,0.001,89892.0,89890.0,0.00219803]
[1763449805524,0.0136,89892.0,89891.0,0.27036]
[1763449805924,0.0136,89892.0,89890.0,0.00219803]
[1763449806338,0.04363,89881.0,89880.0,0.00219803]
[1763449806633,0.04363,89881.0,89880.0,0.27251803]
[1763449806828,0.0126,89892.0,89880.0,0.27251803]
[1763449807131,0.0126,89892.0,89882.0,0.21110931]
[1763449807931,0.0341,89892.0,89891.0,0.001]
[1763449808434,0.0341,89892.0,89890.0,0.00219803]
[1763449808620,0.04463,89891.0,89890.0,0.00219803]
[1763449808820,0.04463,89891.0,89890.0,0.10167803]
[1763449809727,0.0126,89892.0,89890.0,0.10167803]
[1763449810031,0.0126,89903.0,89890.0,0.21305783]
[1763449810230,0.0126,89903.0,89893.0,0.42221862]
[1763449810923,0.0126,89903.0,89894.0,0.1113757]
[1763449811435,0.001,89903.0,89896.0,0.1113728]
[1763449811628,0.001,89903.0,89895.0,0.11123903]
[1763449811932,0.001,89903.0,89896.0,0.1112]
[1763449812232,0.001,89903.0,89901.0,0.1113663]
[1763449812422,0.001,89903.0,89897.0,0.1113717]
[1763449812618,0.001,89903.0,89898.0,0.1113707]
[1763449812827,0.001,89903.0,89891.0,0.09065357]
[1763449813035,0.001,89903.0,89899.0,0.11123532]
[1763449813236,0.04463,89900.0,89893.0,0.21110931]
[1763449813543,0.0215,89894.0,89893.0,0.21110931]
[1763449813742,0.04463,89894.0,89893.0,0.27036]
[1763449814042,0.04363,89878.0,89877.0,0.27052693]
[1763449814753,0.0126,89843.0,89839.0,0.05986754]
[1763449814941,0.02313,89839.0,89830.0,0.00219803]
[1763449815236,0.02313,89839.0,89833.0,0.21110931]
[1763449815432,0.02213,89839.0,89833.0,0.21110931]
[1763449816348,0.0126,89843.0,89833.0,0.21110931]
[1763449816540,0.0215,89840.0,89839.0,0.002]
[1763449816737,0.04463,89840.0,89839.0,0.002]
[1763449816941,0.0126,89843.0,89840.0,0.00219803]
[1763449817236,0.00016693,89845.0,89840.0,0.00219803]
[1763449818842,0.001,89843.0,89840.0,0.00219803]
[1763449819940,0.02133,89841.0,89840.0,0.00219803]
[1763449820134,0.04409,89841.0,89840.0,0.00219803]
[1763449820335,0.04409,89841.0,89840.0,0.27271803]
[1763449821241,0.001,89841.0,89840.0,0.27271803]
[1763449821941,0.04509,89841.0,89840.0,0.27271803]
[1763449822843,0.04409,89832.0,89831.0,0.21110931]
[1763449823037,0.01271,89838.0,89827.0,0.00016693]
[1763449823038,0.04409,89831.0,89830.0,0.00219803]
[1763449823642,0.01271,89838.0,89830.0,0.00219803]
[1763449823943,0.04409,89831.0,89830.0,0.00219803]
[1763449824445,0.04409,89831.0,89830.0,0.27267803]
[1763449825238,0.01271,89838.0,89830.0,0.27267803]
[1763449826642,0.002,89831.0,89830.0,0.27267803]
[1763449827147,0.001,89831.0,89830.0,0.27267803]
[1763449827339,0.01271,89838.0,89830.0,0.27267803]
[1763449828036,0.01271,89838.0,89831.0,0.27052]
[1763449829135,0.01271,89838.0,89830.0,0.00219803]
[1763449829441,0.01271,89838.0,89831.0,0.27052]
[1763449829641,0.01271,89838.0,89832.0,0.1114525]
[1763449829950,0.01271,89838.0,89831.0,0.3819735]
[1763449830150,0.01271,89838.0,89831.0,0.27052]
[1763449830352,0.01271,89838.0,89835.0,0.1114485]
[1763449830647,0.01271,89838.0,89831.0,0.3819729]
[1763449831645,0.00016693,89845.0,89831.0,0.27052]
[1763449831842,0.00016693,89845.0,89835.0,0.42221862]
[1763449832243,0.00016693,89845.0,89843.0,0.1114385]
[1763449832443,0.00016693,89845.0,89844.0,0.27048]
[1763449832951,0.01285,89843.0,89840.0,0.00219803]
[1763449833251,0.0028691,89843.0,89841.0,0.38178899]
[1763449833746,0.0028691,89843.0,89842.0,0.11128]
[1763449833953,0.0028691,89843.0,89841.0,0.38178899]
[1763449834147,0.0028691,89843.0,89841.0,0.36047086]
[1763449834343,0.0028691,89843.0,89842.0,0.11130713]
[1763449834544,0.0028691,89843.0,89841.0,0.47175086]
[1763449834848,0.0028691,89843.0,89842.0,0.11130651]
[1763449836549,0.00016693,89845.0,89842.0,0.33402631]
[1763449836748,0.00016693,89845.0,89843.0,0.11128]
[1763449837052,0.00016693,89845.0,89842.0,0.27044]
[1763449837447,0.00016693,89845.0,89844.0,0.11130589]
[1763449837647,0.00016693,89845.0,89844.0,0.27044]
[1763449838846,0.0126,89856.0,89844.0,0.27044]
[1763449839050,0.0126,89856.0,89854.0,0.1114251]
[1763449839248,0.03571,89869.0,89855.0,0.2704]